[Event "Rapid Tournament (RAP)"]
[Site "Biel, Switzerland"]
[Date "2026.07.12"]
[Round "3.20"]
[White "Tkhoruk, Roman"]
[Black "Villiger, Jan"]
[Result "1-0"]
[TimeControl "15 + 5"]
[WhiteTitle "-"]
[BlackTitle "-"]
[WhiteFideId "34161589"]
[BlackFideId "1340891"]
[WhiteElo "2076"]
[BlackElo "1846"]

1. e4 {[%clk 00:15:08]} {[%emt 00:00:03]} c5 {[%clk 00:15:09]} 2. Nf3 {[%clk
00:15:11]} {[%emt 00:00:02]} d6 {[%clk 00:15:13]} 3. Bb5+ {[%clk 00:15:15]}
{[%emt 00:00:01]} Nd7 {[%clk 00:15:16]} {[%emt 00:00:03]} 4. O-O {[%clk
00:15:17]} {[%emt 00:00:02]} a6 {[%clk 00:15:20]} {[%emt 00:00:02]} 5. Bd3
{[%clk 00:15:21]} {[%emt 00:00:01]} g6 {[%clk 00:15:19]} {[%emt 00:00:06]} 6.
c3 {[%clk 00:15:23]} {[%emt 00:00:02]} Bg7 {[%clk 00:15:23]} {[%emt 00:00:01]}
7. Bc2 {[%clk 00:15:27]} {[%emt 00:00:01]} Ngf6 {[%clk 00:15:05]} {[%emt
00:00:23]} 8. d4 {[%clk 00:15:23]} {[%emt 00:00:09]} e5 {[%clk 00:14:16]}
{[%emt 00:00:53]} 9. dxe5 {[%clk 00:15:19]} {[%emt 00:00:09]} dxe5 {[%clk
00:14:20]} {[%emt 00:00:02]} 10. Nbd2 {[%clk 00:15:10]} {[%emt 00:00:14]} O-O
{[%clk 00:14:19]} {[%emt 00:00:06]} 11. Nc4 {[%clk 00:15:12]} {[%emt 00:00:03]}
Qc7 {[%clk 00:14:22]} {[%emt 00:00:01]} 12. a4 {[%clk 00:15:05]} {[%emt
00:00:13]} b6 {[%clk 00:13:46]} {[%emt 00:00:41]} 13. Qd6 {[%clk 00:11:49]}
{[%emt 00:03:20]} Qxd6 {[%clk 00:13:34]} {[%emt 00:00:17]} 14. Nxd6 {[%clk
00:11:53]} {[%emt 00:00:01]} Ne8 {[%clk 00:12:32]} {[%emt 00:01:08]} 15. Nxc8
{[%clk 00:11:49]} {[%emt 00:00:09]} Rxc8 {[%clk 00:12:29]} {[%emt 00:00:08]} 16.
Rd1 {[%clk 00:11:52]} {[%emt 00:00:02]} Rc7 {[%clk 00:12:03]} {[%emt 00:00:32]}
17. b3 {[%clk 00:11:35]} {[%emt 00:00:21]} Nef6 {[%clk 00:09:50]} {[%emt
00:02:18]} 18. h3 {[%clk 00:10:56]} {[%emt 00:00:44]} Rfc8 {[%clk 00:09:24]}
{[%emt 00:00:31]} 19. Be3 {[%clk 00:10:57]} {[%emt 00:00:03]} Nh5 {[%clk
00:08:13]} {[%emt 00:01:16]} 20. g3 {[%clk 00:10:29]} {[%emt 00:00:33]} b5
{[%clk 00:06:55]} {[%emt 00:01:24]} 21. a5 {[%clk 00:09:37]} {[%emt 00:00:57]}
Nhf6 {[%clk 00:06:24]} {[%emt 00:00:36]} 22. Rd2 {[%clk 00:09:18]} {[%emt
00:00:24]} Ne8 {[%clk 00:04:41]} {[%emt 00:01:48]} 23. Rad1 {[%clk 00:09:00]}
{[%emt 00:00:23]} Nf8 {[%clk 00:04:27]} {[%emt 00:00:18]} 24. Rd5 {[%clk
00:08:42]} {[%emt 00:00:24]} f6 {[%clk 00:03:47]} {[%emt 00:00:45]} 25. Kf1
{[%clk 00:06:05]} {[%emt 00:02:42]} Kf7 {[%clk 00:03:50]} {[%emt 00:00:02]} 26.
Ke2 {[%clk 00:05:55]} {[%emt 00:00:14]} Ke7 {[%clk 00:03:53]} {[%emt 00:00:02]}
27. g4 {[%clk 00:05:47]} {[%emt 00:00:14]} Ne6 {[%clk 00:03:46]} {[%emt
00:00:12]} 28. g5 {[%clk 00:05:10]} {[%emt 00:00:41]} Nf4+ {[%clk 00:03:36]}
{[%emt 00:00:16]} 29. Bxf4 {[%clk 00:05:12]} {[%emt 00:00:03]} exf4 {[%clk
00:03:39]} {[%emt 00:00:01]} 30. gxf6+ {[%clk 00:05:10]} {[%emt 00:00:07]} Bxf6
{[%clk 00:03:43]} {[%emt 00:00:02]} 31. e5 {[%clk 00:04:57]} {[%emt 00:00:18]}
Bg7 {[%clk 00:03:43]} {[%emt 00:00:05]} 32. c4 {[%clk 00:04:27]} {[%emt
00:00:35]} bxc4 {[%clk 00:03:10]} {[%emt 00:00:39]} 33. bxc4 {[%clk 00:04:30]}
{[%emt 00:00:01]} Rb8 {[%clk 00:03:11]} {[%emt 00:00:04]} 34. Ba4 {[%clk
00:03:59]} {[%emt 00:00:36]} Bh6 {[%clk 00:01:35]} {[%emt 00:01:41]} 35. Rd7+
{[%clk 00:03:06]} {[%emt 00:00:58]} Kf8 {[%clk 00:00:30]} {[%emt 00:01:10]} 36.
Rxc7 {[%clk 00:03:04]} {[%emt 00:00:07]} Nxc7 {[%clk 00:00:34]} {[%emt
00:00:01]} 37. Rd7 {[%clk 00:03:03]} {[%emt 00:00:06]} Ne6 {[%clk 00:00:35]}
{[%emt 00:00:04]} 38. Ra7 {[%clk 00:02:32]} {[%emt 00:00:36]} Rb4 {[%clk
00:00:23]} {[%emt 00:00:18]} 39. Bd7 {[%clk 00:01:58]} {[%emt 00:00:38]} Nd4+
{[%clk 00:00:24]} {[%emt 00:00:04]} 40. Nxd4 {[%clk 00:02:00]} {[%emt
00:00:04]} cxd4 {[%clk 00:00:28]} {[%emt 00:00:01]} 41. Kd3 {[%clk 00:02:00]}
{[%emt 00:00:05]} Bg7 {[%clk 00:00:13]} {[%emt 00:00:20]} 42. Rxa6 {[%clk
00:01:26]} {[%emt 00:00:39]} Bxe5 {[%clk 00:00:08]} {[%emt 00:00:09]} 43. Re6
{[%clk 00:01:30]} {[%emt 00:00:02]} Bg7 {[%clk 00:00:12]} 44. a6 {[%clk
00:01:32]} {[%emt 00:00:04]} Rb3+ {[%clk 00:00:14]} {[%emt 00:00:02]} 45. Kc2
{[%clk 00:01:27]} {[%emt 00:00:10]} Ra3 {[%clk 00:00:18]} {[%emt 00:00:01]} 46.
Bb5 {[%clk 00:01:12]} {[%emt 00:00:20]} d3+ {[%clk 00:00:22]} {[%emt 00:00:01]}
47. Kd2 {[%clk 00:01:16]} {[%emt 00:00:01]} f3 {[%clk 00:00:18]} {[%emt
00:00:10]} 48. c5 {[%clk 00:00:08]} {[%emt 00:01:13]} Bh6+ {[%clk 00:00:21]} 49.
Re3 {[%clk 00:00:12]} Bxe3+ {[%clk 00:00:18]} {[%emt 00:00:09]} 50. Kxe3 {[%clk
00:00:16]} Ke7 {[%clk 00:00:21]} {[%emt 00:00:02]} 51. Bxd3 {[%clk 00:00:17]}
{[%emt 00:00:04]} Kd7 {[%clk 00:00:23]} {[%emt 00:00:03]} 52. Kd4 {[%clk
00:00:20]} {[%emt 00:00:02]} Kc6 {[%clk 00:00:25]} {[%emt 00:00:03]} 53. Be4+
{[%clk 00:00:20]} {[%emt 00:00:05]} Kc7 {[%clk 00:00:28]} {[%emt 00:00:02]} 54.
Bb7 {[%clk 00:00:23]} {[%emt 00:00:03]} Ra4+ {[%clk 00:00:14]} {[%emt
00:00:20]} 55. Ke3 {[%clk 00:00:25]} {[%emt 00:00:02]} Rh4 {[%clk 00:00:10]}
{[%emt 00:00:09]} 56. Bxf3 {[%clk 00:00:21]} {[%emt 00:00:10]} Ra4 {[%clk
00:00:09]} {[%emt 00:00:06]} 57. Bb7 {[%clk 00:00:24]} {[%emt 00:00:01]} h6
{[%clk 00:00:12]} {[%emt 00:00:01]} 58. f4 {[%clk 00:00:20]} {[%emt 00:00:10]}
Rb4 {[%clk 00:00:08]} {[%emt 00:00:09]} 59. Kf3 {[%clk 00:00:21]} {[%emt
00:00:04]} Ra4 {[%clk 00:00:11]} {[%emt 00:00:02]} 60. h4 {[%clk 00:00:21]}
{[%emt 00:00:05]} g5 {[%clk 00:00:07]} {[%emt 00:00:09]} 61. hxg5 {[%clk
00:00:24]} {[%emt 00:00:02]} hxg5 {[%clk 00:00:11]} 62. fxg5 {[%clk 00:00:28]}
{[%emt 00:00:01]} Ra5 {[%clk 00:00:11]} {[%emt 00:00:06]} 63. g6 {[%clk
00:00:15]} {[%emt 00:00:17]} Rxc5 {[%clk 00:00:12]} {[%emt 00:00:04]} 64. Kf4
{[%clk 00:00:17]} {[%emt 00:00:03]} Rc1 {[%clk 00:00:13]} {[%emt 00:00:03]} 65.
Bf3 {[%clk 00:00:09]} {[%emt 00:00:14]} Kb6 {[%clk 00:00:14]} {[%emt 00:00:04]}
66. g7 {[%clk 00:00:13]} Rc8 {[%clk 00:00:17]} {[%emt 00:00:01]} 67. Bd5 {[%clk
00:00:09]} {[%emt 00:00:09]} Kxa6 {[%clk 00:00:21]} {[%emt 00:00:03]} 68. Ke5
{[%clk 00:00:12]} {[%emt 00:00:02]} Kb6 {[%clk 00:00:22]} {[%emt 00:00:03]} 69.
Kd6 {[%clk 00:00:13]} {[%emt 00:00:04]} Rd8 {[%clk 00:00:25]} {[%emt 00:00:02]}
70. Ke7 {[%clk 00:00:16]} {[%emt 00:00:02]} Kc7 {[%clk 00:00:29]} 71. Bf7
{[%clk 00:00:16]} {[%emt 00:00:06]} 1-0

[Event "Rapid Tournament (RAP)"]
[Site "Biel, Switzerland"]
[Date "2026.07.12"]
[Round "3.21"]
[White "Filimonov, Arsenii"]
[Black "Fernandes Barbosa Dos Santos, Gabriel"]
[Result "1-0"]
[TimeControl "15 + 5"]
[WhiteTitle "-"]
[BlackTitle "-"]
[WhiteFideId "34171584"]
[BlackFideId "1354388"]
[WhiteElo "1843"]
[BlackElo "2199"]

1. e4 {[%clk 00:15:07]} c5 {[%clk 00:15:02]} {[%emt 00:00:08]} 2. Nf3 {[%clk
00:15:10]} {[%emt 00:00:02]} d6 {[%clk 00:15:06]} {[%emt 00:00:04]} 3. d4
{[%clk 00:15:14]} cxd4 {[%clk 00:15:08]} {[%emt 00:00:01]} 4. Nxd4 {[%clk
00:15:17]} {[%emt 00:00:02]} Nf6 {[%clk 00:15:12]} {[%emt 00:00:02]} 5. Nc3
{[%clk 00:15:19]} {[%emt 00:00:03]} g6 {[%clk 00:15:15]} {[%emt 00:00:02]} 6.
Bg5 {[%clk 00:15:21]} {[%emt 00:00:02]} Bg7 {[%clk 00:15:18]} {[%emt 00:00:03]}
7. Bb5+ {[%clk 00:15:24]} Bd7 {[%clk 00:14:51]} {[%emt 00:00:31]} 8. Qe2 {[%clk
00:15:22]} {[%emt 00:00:07]} a6 {[%clk 00:14:35]} {[%emt 00:00:23]} 9. Bxd7+
{[%clk 00:15:21]} {[%emt 00:00:06]} Nbxd7 {[%clk 00:14:37]} {[%emt 00:00:03]}
10. O-O-O {[%clk 00:15:21]} {[%emt 00:00:04]} Rc8 {[%clk 00:13:57]} {[%emt
00:00:45]} 11. f4 {[%clk 00:15:23]} {[%emt 00:00:03]} Rxc3 {[%clk 00:13:25]}
{[%emt 00:00:38]} 12. bxc3 {[%clk 00:15:24]} {[%emt 00:00:04]} Qa5 {[%clk
00:13:21]} {[%emt 00:00:08]} 13. Nb3 {[%clk 00:13:37]} {[%emt 00:01:53]} Qa3+
{[%clk 00:11:28]} {[%emt 00:01:58]} 14. Kd2 {[%clk 00:12:05]} {[%emt 00:01:37]}
O-O {[%clk 00:11:22]} {[%emt 00:00:11]} 15. Rhe1 {[%clk 00:10:05]} {[%emt
00:02:04]} Rc8 {[%clk 00:11:14]} {[%emt 00:00:14]} 16. Qf3 {[%clk 00:08:32]}
{[%emt 00:01:38]} h6 {[%clk 00:10:59]} {[%emt 00:00:20]} 17. Bxf6 {[%clk
00:07:48]} {[%emt 00:00:49]} Bxf6 {[%clk 00:10:55]} {[%emt 00:00:09]} 18. e5
{[%clk 00:07:47]} {[%emt 00:00:05]} dxe5 {[%clk 00:08:25]} {[%emt 00:02:35]} 19.
Qxb7 {[%clk 00:07:48]} {[%emt 00:00:05]} Rd8 {[%clk 00:07:50]} {[%emt
00:00:40]} 20. Ke2 {[%clk 00:07:51]} {[%emt 00:00:02]} Qa4 {[%clk 00:07:42]}
{[%emt 00:00:13]} 21. fxe5 {[%clk 00:06:40]} {[%emt 00:01:16]} Bxe5 {[%clk
00:07:19]} {[%emt 00:00:27]} 22. Kf1 {[%clk 00:05:04]} {[%emt 00:01:41]} Kg7
{[%clk 00:05:48]} {[%emt 00:01:36]} 23. Re4 {[%clk 00:04:40]} {[%emt 00:00:29]}
Qxa2 {[%clk 00:03:47]} {[%emt 00:02:07]} 24. Rxe5 {[%clk 00:04:37]} {[%emt
00:00:08]} Nxe5 {[%clk 00:02:24]} {[%emt 00:01:28]} 25. Rxd8 {[%clk 00:04:39]}
{[%emt 00:00:02]} Qb1+ {[%clk 00:02:27]} {[%emt 00:00:02]} 26. Ke2 {[%clk
00:03:30]} {[%emt 00:01:14]} Qxc2+ {[%clk 00:02:30]} {[%emt 00:00:02]} 27. Rd2
{[%clk 00:03:33]} {[%emt 00:00:02]} Qxc3 {[%clk 00:02:22]} {[%emt 00:00:14]} 28.
Qe4 {[%clk 00:03:02]} {[%emt 00:00:35]} f6 {[%clk 00:02:19]} {[%emt 00:00:09]}
29. Nd4 {[%clk 00:02:52]} {[%emt 00:00:14]} a5 {[%clk 00:02:16]} {[%emt
00:00:09]} 30. Ne6+ {[%clk 00:02:43]} {[%emt 00:00:14]} Kh7 {[%clk 00:01:40]}
{[%emt 00:00:41]} 31. Rc2 {[%clk 00:01:19]} {[%emt 00:01:29]} Qb3 {[%clk
00:01:34]} {[%emt 00:00:11]} 32. Nd4 {[%clk 00:01:12]} {[%emt 00:00:12]} Qb4
{[%clk 00:01:24]} {[%emt 00:00:13]} 33. h4 {[%clk 00:00:55]} {[%emt 00:00:24]}
h5 {[%clk 00:01:27]} {[%emt 00:00:01]} 34. Rc7 {[%clk 00:00:25]} {[%emt
00:00:34]} a4 {[%clk 00:01:23]} {[%emt 00:00:10]} 35. g3 {[%clk 00:00:20]}
{[%emt 00:00:11]} a3 {[%clk 00:01:24]} {[%emt 00:00:03]} 36. Qb7 {[%clk
00:00:14]} {[%emt 00:00:11]} Qxb7 {[%clk 00:00:08]} {[%emt 00:01:21]} 37. Rxb7
{[%clk 00:00:17]} {[%emt 00:00:02]} Nc4 {[%clk 00:00:00]} {[%emt 00:00:08]} 38.
Rxe7+ {[%clk 00:00:17]} {[%emt 00:00:03]} 1-0

[Event "Rapid Tournament (RAP)"]
[Site "Biel, Switzerland"]
[Date "2026.07.12"]
[Round "3.22"]
[White "De Gregorio, Alexis"]
[Black "Aryan, Goyal"]
[Result "0-1"]
[TimeControl "15 + 5"]
[WhiteTitle "-"]
[BlackTitle "-"]
[WhiteFideId "1310054"]
[BlackFideId "366108825"]
[WhiteElo "2030"]
[BlackElo "1869"]

1. d4 {[%clk 00:13:23]} {[%emt 00:01:46]} Nf6 {[%clk 00:15:09]} {[%emt
00:00:01]} 2. c4 {[%clk 00:13:26]} {[%emt 00:00:02]} e6 {[%clk 00:15:12]}
{[%emt 00:00:03]} 3. Nc3 {[%clk 00:13:29]} {[%emt 00:00:02]} Bb4 {[%clk
00:15:15]} {[%emt 00:00:01]} 4. Qc2 {[%clk 00:13:32]} {[%emt 00:00:03]} O-O
{[%clk 00:15:17]} {[%emt 00:00:03]} 5. e4 {[%clk 00:13:34]} {[%emt 00:00:02]}
d5 {[%clk 00:15:14]} {[%emt 00:00:08]} 6. e5 {[%clk 00:13:32]} {[%emt
00:00:07]} Ne4 {[%clk 00:15:18]} {[%emt 00:00:01]} 7. Bd3 {[%clk 00:13:34]}
{[%emt 00:00:03]} c5 {[%clk 00:15:17]} {[%emt 00:00:07]} 8. a3 {[%clk
00:13:26]} {[%emt 00:00:13]} Qa5 {[%clk 00:14:39]} {[%emt 00:00:42]} 9. axb4
{[%clk 00:12:44]} {[%emt 00:00:47]} Qxa1 {[%clk 00:14:37]} {[%emt 00:00:08]} 10.
bxc5 {[%clk 00:12:48]} {[%emt 00:00:02]} Nc6 {[%clk 00:14:18]} {[%emt
00:00:23]} 11. Nge2 {[%clk 00:12:38]} {[%emt 00:00:14]} Nb4 {[%clk 00:14:15]}
{[%emt 00:00:08]} 12. Qd1 {[%clk 00:12:03]} {[%emt 00:00:40]} Nxc3 {[%clk
00:13:31]} {[%emt 00:00:50]} 13. bxc3 {[%clk 00:11:49]} {[%emt 00:00:19]} Nxd3+
{[%clk 00:13:18]} {[%emt 00:00:17]} 14. Qxd3 {[%clk 00:11:51]} {[%emt
00:00:03]} dxc4 {[%clk 00:13:06]} {[%emt 00:00:18]} 15. Qg3 {[%clk 00:11:14]}
{[%emt 00:00:41]} Qb1 {[%clk 00:11:58]} {[%emt 00:01:14]} 16. O-O {[%clk
00:10:35]} {[%emt 00:00:43]} Qd3 {[%clk 00:11:30]} {[%emt 00:00:27]} 17. Qg4
{[%clk 00:08:19]} {[%emt 00:02:27]} Bd7 {[%clk 00:10:48]} {[%emt 00:00:47]} 18.
Nf4 {[%clk 00:07:06]} {[%emt 00:01:19]} Qf5 {[%clk 00:10:46]} {[%emt 00:00:06]}
19. Qxf5 {[%clk 00:06:50]} {[%emt 00:00:22]} exf5 {[%clk 00:10:50]} {[%emt
00:00:01]} 20. Nd5 {[%clk 00:06:01]} {[%emt 00:00:53]} h6 {[%clk 00:09:35]}
{[%emt 00:01:21]} 21. Ne3 {[%clk 00:05:55]} {[%emt 00:00:11]} Rfd8 {[%clk
00:08:54]} {[%emt 00:00:45]} 22. Nxc4 {[%clk 00:05:56]} {[%emt 00:00:04]} Bb5
{[%clk 00:08:57]} {[%emt 00:00:03]} 0-1

[Event "Rapid Tournament (RAP)"]
[Site "Biel, Switzerland"]
[Date "2026.07.12"]
[Round "3.23"]
[White "Egli, Urs"]
[Black "Creux, Francois"]
[Result "1-0"]
[TimeControl "15 + 5"]
[WhiteTitle "-"]
[BlackTitle "-"]
[WhiteFideId "1306685"]
[BlackFideId "1357743"]
[WhiteElo "1964"]
[BlackElo "1668"]

1. g3 {[%clk 00:15:09]} d5 {[%clk 00:15:00]} {[%emt 00:00:11]} 2. Bg2 {[%clk
00:15:12]} {[%emt 00:00:03]} e5 {[%clk 00:14:48]} {[%emt 00:00:17]} 3. c4
{[%clk 00:15:14]} {[%emt 00:00:01]} c6 {[%clk 00:14:36]} {[%emt 00:00:17]} 4.
cxd5 {[%clk 00:15:17]} {[%emt 00:00:02]} cxd5 {[%clk 00:14:39]} {[%emt
00:00:03]} 5. d4 {[%clk 00:15:20]} {[%emt 00:00:01]} e4 {[%clk 00:14:23]}
{[%emt 00:00:21]} 6. Nh3 {[%clk 00:15:22]} {[%emt 00:00:02]} Nc6 {[%clk
00:14:09]} {[%emt 00:00:20]} 7. Nc3 {[%clk 00:15:23]} {[%emt 00:00:03]} Nf6
{[%clk 00:13:49]} {[%emt 00:00:26]} 8. Bg5 {[%clk 00:15:10]} {[%emt 00:00:17]}
Be7 {[%clk 00:13:47]} {[%emt 00:00:08]} 9. e3 {[%clk 00:14:25]} {[%emt
00:00:50]} O-O {[%clk 00:13:25]} {[%emt 00:00:27]} 10. O-O {[%clk 00:14:03]}
{[%emt 00:00:26]} Bg4 {[%clk 00:12:13]} {[%emt 00:01:18]} 11. Qb3 {[%clk
00:13:48]} {[%emt 00:00:20]} Na5 {[%clk 00:11:48]} {[%emt 00:00:31]} 12. Qc2
{[%clk 00:12:03]} {[%emt 00:01:48]} Rc8 {[%clk 00:11:31]} {[%emt 00:00:23]} 13.
Nf4 {[%clk 00:11:29]} {[%emt 00:00:38]} Be6 {[%clk 00:09:39]} {[%emt 00:01:57]}
14. f3 {[%clk 00:10:25]} {[%emt 00:01:10]} Nc4 {[%clk 00:09:35]} {[%emt
00:00:09]} 15. Qe2 {[%clk 00:09:20]} {[%emt 00:01:09]} exf3 {[%clk 00:08:34]}
{[%emt 00:01:07]} 16. Bxf3 {[%clk 00:09:21]} {[%emt 00:00:04]} h6 {[%clk
00:07:47]} {[%emt 00:00:52]} 17. Bxf6 {[%clk 00:09:24]} {[%emt 00:00:02]} Bxf6
{[%clk 00:07:50]} {[%emt 00:00:02]} 18. Ncxd5 {[%clk 00:07:29]} {[%emt
00:02:00]} Bxd5 {[%clk 00:07:38]} {[%emt 00:00:17]} 19. Bxd5 {[%clk 00:04:39]}
{[%emt 00:02:55]} b5 {[%clk 00:06:30]} {[%emt 00:01:13]} 20. b3 {[%clk
00:04:21]} {[%emt 00:00:24]} Nxe3 {[%clk 00:05:53]} {[%emt 00:00:41]} 21. Qxe3
{[%clk 00:04:16]} {[%emt 00:00:09]} Re8 {[%clk 00:05:58]} 22. Qf3 {[%clk
00:03:39]} {[%emt 00:00:42]} Qb6 {[%clk 00:05:36]} {[%emt 00:00:27]} 23. Rae1
{[%clk 00:02:51]} {[%emt 00:00:52]} Qxd4+ {[%clk 00:05:08]} {[%emt 00:00:34]}
24. Kh1 {[%clk 00:02:23]} {[%emt 00:01:10]} Red8 {[%clk 00:05:24]} {[%emt
00:00:48]} 25. Rd1 {[%clk 00:02:03]} {[%emt 00:00:25]} Qc3 {[%clk 00:05:00]}
{[%emt 00:00:29]} 26. Nh5 {[%clk 00:01:44]} {[%emt 00:00:24]} Qxf3+ {[%clk
00:04:55]} {[%emt 00:00:09]} 27. Rxf3 {[%clk 00:01:42]} {[%emt 00:00:08]} Kf8
{[%clk 00:04:10]} {[%emt 00:00:50]} 28. Nxf6 {[%clk 00:01:44]} {[%emt
00:00:03]} gxf6 {[%clk 00:04:12]} {[%emt 00:00:03]} 29. Rxf6 {[%clk 00:01:32]}
{[%emt 00:00:18]} Rc7 {[%clk 00:04:01]} {[%emt 00:00:15]} 30. Rxh6 {[%clk
00:01:24]} {[%emt 00:00:13]} Kg7 {[%clk 00:03:59]} {[%emt 00:00:07]} 31. Rh5
{[%clk 00:01:20]} {[%emt 00:00:09]} Kg6 {[%clk 00:03:57]} {[%emt 00:00:06]} 32.
Be4+ {[%clk 00:01:02]} {[%emt 00:00:23]} Kxh5 {[%clk 00:03:53]} {[%emt
00:00:09]} 33. Rxd8 {[%clk 00:01:07]} Re7 {[%clk 00:03:36]} {[%emt 00:00:21]}
34. Bf3+ {[%clk 00:01:11]} {[%emt 00:00:02]} Kg5 {[%clk 00:03:34]} {[%emt
00:00:07]} 35. h4+ {[%clk 00:01:13]} {[%emt 00:00:02]} Kf6 {[%clk 00:03:36]}
{[%emt 00:00:04]} 36. Kg2 {[%clk 00:01:14]} {[%emt 00:00:04]} Rc7 {[%clk
00:03:35]} {[%emt 00:00:06]} 37. a4 {[%clk 00:01:11]} {[%emt 00:00:08]} Ke7
{[%clk 00:03:35]} {[%emt 00:00:04]} 38. Rd4 {[%clk 00:01:09]} {[%emt 00:00:06]}
bxa4 {[%clk 00:03:26]} {[%emt 00:00:15]} 39. bxa4 {[%emt 00:00:14]} 1-0

[Event "Rapid Tournament (RAP)"]
[Site "Biel, Switzerland"]
[Date "2026.07.12"]
[Round "3.24"]
[White "Duric, Ivan"]
[Black "Filipovic, Branko"]
[Result "0-1"]
[TimeControl "15 + 5"]
[WhiteTitle "-"]
[BlackTitle "-"]
[WhiteFideId "1358138"]
[BlackFideId "14507951"]
[WhiteElo "1832"]
[BlackElo "2279"]

1. d4 {[%clk 00:15:07]} {[%emt 00:00:02]} Nf6 {[%clk 00:15:06]} {[%emt
00:00:04]} 2. c4 {[%clk 00:15:10]} {[%emt 00:00:02]} b6 {[%clk 00:15:09]}
{[%emt 00:00:02]} 3. Nc3 {[%clk 00:15:02]} {[%emt 00:00:13]} Bb7 {[%clk
00:15:12]} {[%emt 00:00:02]} 4. Qc2 {[%clk 00:14:56]} {[%emt 00:00:11]} d5
{[%clk 00:15:15]} {[%emt 00:00:02]} 5. Nf3 {[%clk 00:13:52]} {[%emt 00:01:10]}
e6 {[%clk 00:15:10]} {[%emt 00:00:10]} 6. Bg5 {[%clk 00:13:30]} {[%emt
00:00:27]} Be7 {[%clk 00:15:08]} {[%emt 00:00:06]} 7. e3 {[%clk 00:12:53]}
{[%emt 00:00:44]} O-O {[%clk 00:15:04]} {[%emt 00:00:07]} 8. h4 {[%clk
00:12:28]} {[%emt 00:00:30]} h6 {[%clk 00:13:35]} {[%emt 00:01:35]} 9. Ne5
{[%clk 00:10:08]} {[%emt 00:02:25]} Nbd7 {[%clk 00:13:23]} {[%emt 00:00:17]} 10.
f3 {[%clk 00:08:22]} {[%emt 00:01:50]} Nxe5 {[%clk 00:12:21]} {[%emt 00:01:08]}
11. dxe5 {[%clk 00:08:24]} {[%emt 00:00:03]} Nd7 {[%clk 00:12:25]} 12. Bf4
{[%clk 00:07:20]} {[%emt 00:01:10]} c6 {[%clk 00:10:27]} {[%emt 00:02:03]} 13.
O-O-O {[%clk 00:06:33]} {[%emt 00:00:52]} b5 {[%clk 00:09:57]} {[%emt
00:00:35]} 14. g4 {[%clk 00:04:03]} {[%emt 00:02:35]} Bxh4 {[%clk 00:07:42]}
{[%emt 00:02:20]} 15. Qh2 {[%clk 00:01:52]} {[%emt 00:02:15]} Bg5 {[%clk
00:07:30]} {[%emt 00:00:18]} 16. Bxg5 {[%clk 00:01:52]} {[%emt 00:00:05]} Qxg5
{[%clk 00:07:31]} {[%emt 00:00:04]} 17. f4 {[%clk 00:01:54]} {[%emt 00:00:02]}
Qe7 {[%clk 00:07:02]} {[%emt 00:00:35]} 18. g5 {[%clk 00:01:44]} {[%emt
00:00:15]} bxc4 {[%clk 00:06:10]} {[%emt 00:00:57]} 19. gxh6 {[%clk 00:01:25]}
{[%emt 00:00:24]} g6 {[%clk 00:06:14]} 20. h7+ {[%clk 00:01:24]} {[%emt
00:00:05]} Kh8 {[%clk 00:06:18]} {[%emt 00:00:02]} 21. Be2 {[%clk 00:01:23]}
{[%emt 00:00:06]} f6 {[%clk 00:05:18]} {[%emt 00:01:06]} 22. exf6 {[%clk
00:00:58]} {[%emt 00:00:29]} Rxf6 {[%clk 00:05:00]} {[%emt 00:00:23]} 23. Rdg1
{[%clk 00:00:48]} {[%emt 00:00:14]} Nf8 {[%clk 00:04:17]} {[%emt 00:00:48]} 24.
e4 {[%clk 00:00:17]} {[%emt 00:00:37]} c5 {[%clk 00:03:30]} {[%emt 00:00:52]}
25. e5 {[%clk 00:00:17]} {[%emt 00:00:05]} Rf7 {[%clk 00:03:17]} {[%emt
00:00:18]} 26. Qf2 {[%clk 00:00:10]} {[%emt 00:00:12]} d4 {[%clk 00:03:01]}
{[%emt 00:00:21]} 27. Nb5 {[%clk 00:00:13]} Bxh1 {[%clk 00:03:02]} {[%emt
00:00:04]} 28. Rxh1 {[%clk 00:00:17]} {[%emt 00:00:02]} d3 {[%clk 00:03:04]}
{[%emt 00:00:03]} 29. Bd1 {[%clk 00:00:14]} {[%emt 00:00:07]} Rd8 {[%clk
00:02:53]} {[%emt 00:00:16]} 30. Nd6 {[%clk 00:00:18]} {[%emt 00:00:01]} Rxd6
{[%clk 00:02:54]} {[%emt 00:00:05]} 31. exd6 {[%clk 00:00:22]} Qxd6 {[%clk
00:02:58]} {[%emt 00:00:01]} 32. Qe3 {[%clk 00:00:21]} {[%emt 00:00:05]} Qxf4
{[%clk 00:02:57]} {[%emt 00:00:07]} 33. Qxf4 {[%clk 00:00:20]} {[%emt
00:00:06]} Rxf4 {[%clk 00:03:01]} 34. Rh6 {[%clk 00:00:17]} {[%emt 00:00:08]}
Rf7 {[%clk 00:02:49]} {[%emt 00:00:16]} 35. Kd2 {[%clk 00:00:19]} {[%emt
00:00:04]} Rxh7 {[%clk 00:02:53]} {[%emt 00:00:02]} 36. Rxh7+ {[%clk 00:00:22]}
Kxh7 {[%clk 00:02:57]} {[%emt 00:00:01]} 37. b3 {[%clk 00:00:22]} {[%emt
00:00:05]} cxb3 {[%clk 00:02:59]} {[%emt 00:00:03]} 38. Bxb3 {[%clk 00:00:26]}
{[%emt 00:00:01]} Kg7 {[%clk 00:02:56]} {[%emt 00:00:08]} 39. Kxd3 {[%clk
00:00:27]} {[%emt 00:00:04]} Kf6 {[%clk 00:03:00]} {[%emt 00:00:01]} 40. Ke3
{[%clk 00:00:28]} {[%emt 00:00:03]} Nd7 {[%clk 00:03:01]} {[%emt 00:00:05]} 41.
Ke4 {[%clk 00:00:06]} {[%emt 00:00:26]} Nb6 {[%clk 00:03:01]} {[%emt 00:00:05]}
0-1